bitfinex/quotes_ETHUSD_20250404
["timestamp","ask_amount","ask_price","bid_price","bid_amount"]
[1743785376355,6.38331018,1793.3,1792.8,5.63358124]
[1743785376548,5.57666,1793.2,1792.8,5.63358124]
[1743785376750,5.63287018,1793.1,1792.6,5.57833]
[1743785376954,5.63287018,1793.1,1792.5,6.13667]
[1743785376955,5.57742,1793.0,1792.5,6.13653]
[1743785377276,8.57666,1793.2,1792.8,5.57786]
[1743785377583,8.57666,1793.2,1792.8,5.57768]
[1743785377755,3.05568018,1793.2,1792.9,5.57753]
[1743785377946,3.05568018,1793.2,1792.8,5.57768]
[1743785377947,0.8248,1793.6,1793.2,5.57634]
[1743785378347,4.50880244,1794.2,1793.5,5.57564]
[1743785378348,0.8748,1793.9,1793.5,5.57564]
[1743785378564,0.8748,1793.9,1793.6,0.61331694]
[1743785378782,0.10435448,1793.8,1793.6,6.18857694]
[1743785378983,0.10435448,1793.8,1793.6,6.132824]
[1743785379177,0.05,1793.9,1793.6,0.557564]
[1743785379377,0.1050149,1793.7,1793.3,0.8286]
[1743785379577,5.57478,1793.8,1793.3,0.8286]
[1743785379778,0.10494726,1793.6,1793.3,6.40481]
[1743785380087,5.68132352,1793.7,1793.3,0.8286]
[1743785380402,0.05,1793.9,1793.7,5.57494]
[1743785380698,0.05,1793.9,1793.5,4.21791318]
[1743785380699,0.05,1793.9,1793.8,0.61323792]
[1743785380993,5.62455,1793.9,1793.4,5.57582]
[1743785381192,5.73265459,1793.9,1793.3,6.40481]
[1743785381396,5.73265459,1793.9,1793.3,0.8286]
[1743785381397,0.15810459,1793.9,1793.3,0.8286]
[1743785381602,5.57543,1793.6,1793.3,0.8286]
[1743785381794,5.57543,1793.6,1793.1,11.15359]
[1743785382099,0.10699729,1793.5,1793.2,6.691789]
[1743785382295,5.57631,1793.3,1793.0,0.7535]
[1743785382515,5.57631,1793.3,1792.7,6.48522235]
[1743785382516,5.68351697,1793.2,1792.8,0.2086809]
[1743785382717,5.68351697,1793.2,1792.8,5.7863409]
[1743785382718,0.10680697,1793.2,1792.8,5.7863409]
[1743785383006,0.10680697,1793.2,1792.8,5.57766]
[1743785383302,11.1543,1793.1,1792.7,0.7914]
[1743785383604,0.10478661,1793.0,1792.7,6.36955]
[1743785383771,0.10478661,1793.0,1792.8,0.636955]
[1743785384167,0.10478661,1793.0,1792.7,0.2091287]
[1743785384364,5.57696,1793.1,1792.7,0.2091287]
[1743785384679,11.15411,1793.1,1792.7,0.2091287]
[1743785384881,0.10497814,1793.0,1792.7,0.2091287]
[1743785385194,5.68222814,1793.0,1792.7,0.2091287]
[1743785385578,5.57725,1793.0,1792.7,0.2091287]
[1743785385976,5.57725,1793.0,1792.6,5.84329311]
[1743785386283,5.98473658,1793.3,1792.9,5.57754]
[1743785386284,5.57634,1793.3,1792.9,5.57754]
[1743785386587,3.0,1793.5,1792.8,6.39402]
[1743785386774,5.57658,1793.3,1792.8,11.97174]
[1743785386968,5.57653,1793.3,1792.9,0.2091287]
[1743785387268,5.57674,1793.2,1792.9,0.2091287]
[1743785387467,5.57674,1793.2,1792.9,0.86944357]
[1743785387669,5.57724,1793.0,1792.9,0.2091287]
[1743785387869,11.15468,1793.0,1792.6,0.2091287]
[1743785388302,5.57693,1793.1,1792.6,0.2091287]
[1743785388504,0.7675,1793.2,1792.6,0.2091287]
[1743785388505,5.63203018,1793.3,1792.6,0.2091287]
[1743785388799,5.57682,1793.2,1792.7,5.57801]
[1743785389115,5.57682,1793.2,1792.8,0.2091287]
[1743785389284,5.57682,1793.2,1792.8,0.26489941]
[1743785389483,5.57682,1793.2,1792.8,0.2091287]
[1743785389484,5.57706,1793.1,1792.8,0.2091287]
[1743785389689,5.57732,1793.0,1792.8,0.2091287]
[1743785389894,5.57732,1793.0,1792.7,0.2091287]
[1743785390492,5.57732,1793.0,1792.6,1.28844289]
[1743785390702,5.57761,1792.9,1792.6,1.28844289]
[1743785390919,5.57761,1792.9,1792.6,0.2091287]
[1743785391275,11.15544,1792.9,1792.6,0.2091287]
[1743785391637,5.57761,1792.9,1792.6,0.2649069]
[1743785392219,6.38108,1793.0,1792.6,0.2649069]
[1743785392403,6.38104,1793.0,1792.7,0.2091287]
[1743785392931,0.8038,1793.0,1792.7,0.57875887]
[1743785393130,0.8038,1793.0,1792.7,0.63453367]
[1743785393291,6.38116,1793.0,1792.7,0.57875887]
[1743785393790,5.5759,1793.5,1792.7,0.0557748]
[1743785394014,6.32619,1793.6,1793.1,5.57681]
[1743785394186,11.9018,1793.6,1793.1,11.15355]
[1743785394390,5.57612,1793.4,1793.0,5.7861987]
[1743785394600,5.57612,1793.4,1793.1,0.2091287]
[1743785394795,5.57612,1793.4,1793.1,0.78774857]
[1743785395587,5.57662,1793.2,1793.1,0.2091287]
[1743785395924,5.577,1793.1,1792.7,0.8143]
[1743785396223,5.57697,1793.1,1792.7,5.57805]
[1743785396403,6.37496,1793.2,1792.8,5.57782]
[1743785396725,6.43064018,1793.2,1792.8,1.115587]
[1743785397022,11.15421,1793.1,1792.8,1.115587]
[1743785397321,5.57639,1793.3,1792.9,5.57739]
[1743785397491,5.63207018,1793.3,1792.9,5.78055738]
[1743785398043,5.63207018,1793.3,1793.0,0.20316738]
[1743785398198,5.57639,1793.3,1793.0,0.25893477]
[1743785398395,5.63207018,1793.3,1793.1,0.20316738]
[1743785398621,5.57639,1793.3,1793.1,0.20316738]
[1743785398929,5.57662,1793.2,1792.8,5.5777]
[1743785399225,5.57707,1793.1,1792.8,1.115582]
[1743785399438,5.57738,1793.0,1792.9,0.20357919]
[1743785399795,5.57738,1793.0,1792.6,5.57846]
[1743785399995,5.57707,1793.1,1792.6,11.15678]
[1743785400289,5.57761,1792.9,1792.7,0.20366491]
[1743785400716,5.57786,1792.8,1792.7,0.20366491]
[1743785400921,5.57847,1792.7,1792.3,6.35393]
[1743785401139,5.57841,1792.7,1792.4,0.635393]
[1743785401297,3.0,1792.9,1792.5,5.63435305]
[1743785401499,3.0,1792.9,1792.6,0.20373105]
[1743785401845,11.80803018,1793.0,1792.7,0.20373105]
[1743785402060,5.5776,1792.9,1792.7,0.20373105]
[1743785402501,5.63328018,1792.9,1792.7,0.20373105]
[1743785402696,11.75227,1793.0,1792.7,0.20373105]
[1743785403027,17.32972,1793.0,1792.8,0.20373105]
[1743785403232,5.57755,1792.9,1792.8,0.20373105]
[1743785403417,17.32981,1793.0,1792.8,0.20373105]
[1743785403615,5.57755,1792.9,1792.8,0.20373105]
[1743785403925,11.15471,1793.0,1792.8,0.20373105]
[1743785404110,3.0,1793.0,1792.8,0.20373105]
[1743785404305,8.63321018,1793.0,1792.8,0.20373105]
[1743785404506,3.0,1793.0,1792.7,5.57799]
[1743785404809,5.57727,1793.0,1792.8,0.557799]
[1743785405013,5.57727,1793.0,1792.7,0.7681]
[1743785405014,5.57724,1793.0,1792.5,6.3468]
[1743785405330,0.41693856,1793.2,1792.7,5.57786]
[1743785405538,5.02561318,1793.4,1792.9,5.57735]
[1743785405539,6.38375,1793.4,1792.9,5.57735]
[1743785405742,0.8077,1793.4,1793.0,5.63286506]
[1743785406040,5.57538,1793.6,1793.2,5.57643]
[1743785406212,5.57538,1793.6,1793.2,6.134073]
[1743785406408,5.57538,1793.6,1793.3,0.20369867]
[1743785407029,5.5757,1793.5,1793.3,0.20369867]
[1743785407239,5.5757,1793.5,1793.2,0.557643]
[1743785407642,5.57647,1793.3,1792.9,0.8099]
[1743785407938,5.57601,1793.4,1793.0,11.20999469]
[1743785408137,3.0,1793.6,1793.0,0.20357234]
[1743785408337,3.0,1793.6,1793.3,11.15219]
[1743785408541,5.57561,1793.6,1793.4,0.20357234]
[1743785408843,5.57568,1793.5,1793.4,0.20357234]
[1743785409038,9.00138891,1793.7,1793.2,5.83581108]
[1743785409228,8.57508,1793.7,1793.3,5.5763]
[1743785409410,10.45703933,1793.9,1793.3,0.7582]
[1743785409411,0.05,1793.9,1793.3,0.7582]
[1743785409613,0.05,1793.9,1793.6,5.57537]
[1743785409814,11.19923,1793.9,1793.6,1.115101]
[1743785410016,11.1505,1793.7,1793.4,0.20357234]
[1743785410261,5.57524,1793.7,1793.5,0.20357234]
[1743785410459,5.63105018,1793.6,1793.5,0.20357234]
[1743785410757,6.41235018,1793.6,1793.5,0.20357234]
[1743785410932,5.57631,1793.4,1793.2,0.20357234]
[1743785411137,5.57631,1793.3,1793.2,0.20357234]
[1743785411328,11.15279,1793.3,1793.0,0.20357234]
[1743785411523,3.0,1793.4,1793.0,0.20357234]
[1743785411747,0.7813,1793.6,1793.2,5.57642]
[1743785411923,8.63085018,1793.7,1793.3,0.61339906]
[1743785412129,5.57573,1793.5,1793.3,0.557642]
[1743785412337,5.57552,1793.6,1793.2,0.7875]
[1743785412660,8.57511,1793.7,1793.3,5.63197723]
[1743785412869,8.63079018,1793.7,1793.3,5.63197723]
[1743785413071,5.57541,1793.6,1793.3,0.20357234]
[1743785413370,8.63079018,1793.7,1793.4,5.57583]
[1743785413371,3.0,1793.7,1793.4,5.57583]
[1743785413569,5.57548,1793.6,1793.3,0.20357234]
[1743785413735,3.0,1793.7,1793.4,5.57585]
[1743785413928,3.0,1793.7,1793.4,11.35527234]
[1743785414130,3.0,1793.7,1793.4,11.15172]
[1743785414331,5.6245,1793.9,1793.5,5.57562]
[1743785414543,5.68018018,1793.9,1793.5,11.15114]
[1743785414738,0.05,1793.9,1793.6,1.115114]
[1743785414961,5.68017018,1793.9,1793.5,5.57552]
[1743785415342,5.68017018,1793.9,1793.5,5.77904541]
[1743785415343,0.05,1793.9,1793.5,5.77904541]
[1743785415662,0.05,1793.9,1793.6,5.57528]
[1743785416060,5.62454,1793.9,1793.5,5.57564]
[1743785416267,5.57476,1793.8,1793.4,5.57581]
[1743785416460,0.05568018,1793.7,1793.3,0.20330392]
[1743785416668,5.57539,1793.6,1793.2,6.36409]
[1743785416831,5.63107018,1793.6,1793.2,0.7875]
[1743785417030,5.63107018,1793.6,1793.0,1.03550392]
[1743785417031,5.57587,1793.5,1793.0,1.03550392]
[1743785417236,5.57609,1793.4,1793.0,6.40921]
[1743785417436,5.57609,1793.4,1793.1,0.640921]
[1743785417645,5.57609,1793.4,1793.1,0.84422492]
[1743785417838,5.57586,1793.5,1793.1,6.42105492]
[1743785418061,0.8194,1793.6,1793.1,6.42105492]
[1743785418062,6.45052018,1793.6,1793.2,5.57662]
[1743785418261,0.87508018,1793.6,1793.3,5.57624]
[1743785418462,5.63119018,1793.6,1793.3,1.115275]
[1743785419889,5.63119018,1793.6,1793.3,6.691535]
[1743785420091,11.74711,1793.7,1793.3,12.32349588]
[1743785420394,6.172,1793.7,1793.4,5.57596]
[1743785420560,6.172,1793.7,1793.3,6.691475]
[1743785420561,11.74708,1793.7,1793.3,6.691475]
[1743785420756,11.74708,1793.7,1793.4,0.6691475]
[1743785420961,0.05,1793.9,1793.5,0.05575469]
[1743785421193,0.05,1793.9,1793.8,5.57475]
[1743785421759,0.05,1793.9,1793.8,9.35385]
[1743785421959,1e-05,1793.9,1793.8,12.07308235]
[1743785422164,1e-05,1793.9,1793.8,11.04987615]
[1743785422496,1e-05,1793.9,1793.8,0.20313815]
[1743785422863,5.57467,1793.9,1793.5,5.57551]
[1743785423064,11.14936,1793.9,1793.5,5.57551]
[1743785423263,5.57467,1793.9,1793.5,5.57551]
[1743785423598,5.57467,1793.9,1793.3,6.37441]
[1743785423599,5.57507,1793.7,1793.3,6.37441]
[1743785423897,5.57492,1793.8,1793.4,0.637441]
[1743785424100,0.05568018,1793.8,1793.5,5.5754]
[1743785424266,1e-05,1793.9,1793.7,5.57483]
[1743785424465,1e-05,1793.9,1793.6,5.57535]
[1743785424762,1e-05,1793.9,1793.7,11.707525]
[1743785424959,1e-05,1793.9,1793.7,0.557535]
[1743785425369,1e-05,1793.9,1793.8,5.57475]
[1743785425867,1e-05,1793.9,1793.8,6.37085]
[1743785429790,1e-05,1793.9,1793.8,6.42658828]
[1743785430100,1e-05,1793.9,1793.8,7.68249361]
[1743785430298,1e-05,1793.9,1793.8,7.62675533]
[1743785430501,1e-05,1793.9,1793.8,11.23248244]
[1743785430710,1e-05,1793.9,1793.8,11.17675533]
[1743785437010,1e-05,1793.9,1793.8,11.99796004]
[1743785437589,1e-05,1793.9,1793.8,38.24229304]
[1743785438516,1e-05,1793.9,1793.8,24.63244504]
[1743785438689,1e-05,1793.9,1793.8,18.05796004]
[1743785439282,1e-05,1793.9,1793.8,33.65628204]
[1743785439504,1e-05,1793.9,1793.8,33.41913304]
[1743785440089,1e-05,1793.9,1793.8,17.23675533]
[1743785440293,1e-05,1793.9,1793.8,23.40075533]
[1743785440828,1e-05,1793.9,1793.8,16.68675533]
[1743785440986,1e-05,1793.9,1793.8,13.68675533]
[1743785441185,1e-05,1793.9,1793.8,16.68675533]
[1743785441404,1e-05,1793.9,1793.8,10.62675533]
[1743785441603,1e-05,1793.9,1793.7,5.57489]
[1743785441786,1e-05,1793.9,1793.8,5.57475]
[1743785441988,0.2653386,1793.9,1793.8,5.57475]
[1743785443313,0.2653386,1793.9,1793.6,5.57525]
[1743785443495,1.0726386,1793.9,1793.7,5.57494]
[1743785443906,1.0726386,1793.9,1793.7,12.264881]
[1743785444106,1.0726386,1793.9,1793.7,6.689941]
[1743785444416,1.0726386,1793.9,1793.7,12.264821]
[1743785444636,1.0726386,1793.9,1793.7,6.689911]
[1743785444783,1.0726386,1793.9,1793.7,6.74565259]
[1743785444983,0.2653386,1793.9,1793.8,6.24931526]
[1743785446222,0.2653386,1793.9,1793.7,11.14979]
[1743785446395,0.2653386,1793.9,1793.7,5.57488]
[1743785446594,0.2653386,1793.9,1793.6,5.57531]
[1743785447108,0.2653386,1793.9,1793.6,5.57521]
[1743785447320,6.35394,1793.8,1793.4,0.637441]
[1743785447521,0.7895,1793.6,1793.3,5.57621]
[1743785447724,5.576,1793.4,1793.0,5.57717]
[1743785447886,5.84089106,1793.5,1793.0,11.15419]
[1743785448086,0.26484253,1793.3,1793.0,5.57702]
[1743785448303,0.7932,1793.3,1792.9,5.57741]
[1743785448506,0.26471735,1793.2,1793.0,6.134791]
[1743785448912,0.26471735,1793.2,1793.0,0.557741]
[1743785449104,0.26471735,1793.2,1792.9,5.57741]
[1743785449300,5.84134735,1793.2,1792.8,5.57786]
[1743785449512,0.26471735,1793.2,1792.9,5.57755]
[1743785449723,0.26471735,1793.2,1793.0,11.15403]
[1743785450028,0.26471735,1793.2,1793.0,1.115403]
[1743785450196,0.26471735,1793.2,1792.9,5.57737]
[1743785450390,5.84135735,1793.2,1792.8,5.57768]
[1743785450596,0.26471735,1793.2,1792.8,11.15533]
[1743785450795,0.26471735,1793.2,1792.9,5.5775]
[1743785451007,0.26471735,1793.2,1792.8,5.57765]
[1743785451325,5.89718753,1793.2,1792.8,1.11558]
[1743785451506,0.7626,1793.0,1792.7,5.57815]
[1743785451891,0.25834651,1792.9,1792.6,5.57848]
[1743785452397,0.25834651,1792.9,1792.6,11.15677]
[1743785452600,0.25834651,1792.9,1792.6,5.57829]
[1743785452798,0.25834651,1792.9,1792.5,5.57879]
[1743785452799,5.83591651,1792.9,1792.5,5.57879]
[1743785453125,6.39461,1792.7,1792.2,5.57948]
[1743785453325,6.39461,1792.7,1791.7,5.58121]
[1743785453326,0.8162,1792.4,1791.7,5.58121]
[1743785453500,0.8162,1792.4,1792.0,5.58016]
[1743785453700,0.25790074,1792.3,1792.0,5.58016]
[1743785454095,0.8162,1792.4,1792.0,11.16036]
[1743785454309,0.2581054,1792.2,1792.0,6.696196]
[1743785454508,0.8162,1792.4,1792.0,6.696196]
[1743785454732,0.25808611,1792.1,1791.8,5.58091]
[1743785454935,5.63527018,1792.3,1791.8,5.58091]
[1743785455097,5.63527018,1792.3,1791.7,5.5811]
[1743785455098,0.25799612,1792.0,1791.7,5.5811]
[1743785455428,0.25794147,1791.9,1791.6,5.58153]
[1743785455610,0.8124,1791.8,1791.5,11.1634]
[1743785455935,0.24791383,1791.7,1791.6,6.69794]
[1743785456233,0.8124,1791.8,1791.6,6.69794]
[1743785456593,0.24787257,1791.7,1791.6,1.11634]
[1743785456800,0.24787257,1791.7,1791.4,5.58208]
[1743785456999,0.24787257,1791.7,1791.5,5.58171]
[1743785457928,0.24787257,1791.7,1791.4,5.58202]
[1743785458129,0.24787257,1791.7,1791.5,5.58187]
[1743785458502,0.24787257,1791.7,1791.4,5.58202]
[1743785458701,0.24787257,1791.7,1791.4,12.280515]
[1743785458932,0.24787257,1791.7,1791.5,5.58173]
[1743785459129,0.24787257,1791.7,1791.6,5.5816]
[1743785459307,0.24787257,1791.7,1791.6,5.63741201]
[1743785459725,0.24787257,1791.7,1791.6,5.5816]
[1743785459919,0.24787257,1791.7,1791.6,6.697933]
[1743785460925,0.24787257,1791.7,1791.4,5.58208]
[1743785461126,0.24787257,1791.7,1791.5,5.58185]
[1743785461338,0.24787257,1791.7,1791.4,5.58204]
[1743785461564,0.24787257,1791.7,1791.6,5.5816]
[1743785462139,0.24787257,1791.7,1791.6,5.63740996]
[1743785462301,0.24787257,1791.7,1791.6,6.70352]
[1743785462508,0.24787257,1791.7,1791.6,1.12192]
[1743785462703,0.24787257,1791.7,1791.5,5.58172]
[1743785462951,0.24787257,1791.7,1791.4,5.58219]
[1743785463240,0.24787257,1791.7,1791.1,5.58288]
[1743785463241,0.24787257,1791.7,1791.6,5.5816]
[1743785463417,0.24787257,1791.7,1791.5,5.5817]
[1743785463613,0.24787257,1791.7,1791.2,5.58257]
[1743785463614,0.24787257,1791.7,1791.4,5.5822]
[1743785463815,5.88500275,1791.7,1791.3,11.16489]
[1743785464142,5.58308,1791.2,1790.5,0.767]
[1743785464437,5.58308,1791.2,1790.1,5.63624]
[1743785464438,6.39569,1790.6,1790.1,5.63624]
[1743785464604,5.58545,1790.4,1790.1,0.05]
[1743785464808,0.23869205,1790.3,1790.1,5.63601]
[1743785465011,0.8109,1790.6,1790.4,5.58516]
[1743785465228,0.8109,1790.6,1790.5,5.58503]
[1743785465427,0.8109,1790.6,1790.4,11.17033]
[1743785465635,0.05568018,1790.7,1790.4,5.58522]
[1743785465952,5.58506,1790.5,1790.1,5.63611]
[1743785466239,6.40446,1790.2,1790.1,0.05]
[1743785466445,6.46014018,1790.2,1790.1,0.05]
[1743785467140,0.87418018,1790.2,1790.1,0.05]
[1743785467437,0.8185,1790.2,1790.1,0.05]
[1743785467610,0.8185,1790.2,1790.1,5.63628]
[1743785467812,0.769,1790.5,1790.4,5.58534]
[1743785468010,0.769,1790.5,1790.2,5.58595]
[1743785468241,0.05568018,1790.4,1790.3,5.58565]
[1743785468547,0.769,1790.5,1790.3,5.58565]
[1743785468740,0.769,1790.5,1790.2,5.58595]
[1743785468940,0.769,1790.5,1790.3,5.58548]
[1743785469449,0.8069,1790.8,1790.5,5.58491]
[1743785469641,0.8069,1790.8,1790.5,11.16978]
[1743785470010,0.8069,1790.8,1790.7,5.5844]
[1743785470210,0.85278018,1791.1,1790.6,0.05584233]
[1743785470524,5.58403,1790.9,1790.5,5.58484]
[1743785470728,5.63988018,1790.8,1790.4,5.5853]
[1743785470921,5.63988018,1790.8,1790.4,11.17044]
[1743785471156,0.20964682,1790.7,1790.4,5.58514]
[1743785471450,0.20964682,1790.7,1790.2,6.2616526]
[1743785471616,0.20964682,1790.7,1790.4,11.17029]
[1743785471811,0.20964682,1790.7,1790.5,5.58491]
[1743785472246,0.774,1790.6,1790.4,6.702109]
[1743785472448,0.774,1790.6,1790.4,12.287329]
[1743785472748,0.20953738,1790.5,1790.4,6.702109]
[1743785472919,0.20953738,1790.5,1790.4,6.75795648]
[1743785473338,0.20953738,1790.5,1790.4,6.702109]
[1743785473652,0.7767,1790.9,1790.8,5.58409]
[1743785473945,0.7767,1790.9,1790.7,5.5843]
[1743785474145,0.2099508,1790.9,1790.8,6.14252]
[1743785474360,0.2099508,1790.9,1790.6,11.16926]
[1743785474562,5.63925018,1791.0,1790.6,5.58454]
[1743785474743,0.21299252,1790.8,1790.6,5.58454]
[1743785474920,5.63925018,1791.0,1790.6,5.58454]
[1743785475119,0.21293783,1790.7,1790.6,5.58454]
[1743785475466,0.21293783,1790.7,1790.6,6.701493]
[1743785475622,5.63925018,1791.0,1790.6,12.286063]
[1743785475822,0.21304721,1790.9,1790.6,6.701493]
[1743785476038,0.21304721,1790.9,1790.6,11.16908]
[1743785476251,0.21304721,1790.9,1790.4,1.117029]
[1743785476252,0.21304721,1790.9,1790.8,5.58409]
[1743785476748,0.7504,1791.5,1791.4,5.58222]
[1743785477121,0.7504,1791.5,1791.3,5.58251]
[1743785477122,0.94623314,1791.5,1791.3,5.58251]
[1743785477342,0.94623314,1791.5,1791.4,5.58222]
[1743785477546,0.19583314,1791.5,1791.4,6.698682]
[1743785477916,6.3397,1792.0,1791.7,5.58129]
[1743785478124,5.63653018,1791.9,1791.5,5.58186]
[1743785478324,0.25343783,1791.9,1791.6,5.58145]
[1743785478740,0.19775765,1791.9,1791.8,5.58098]
[1743785479365,0.19775765,1791.9,1791.8,6.75299811]
[1743785479664,6.169,1792.5,1792.4,5.57911]
[1743785479963,0.7569,1792.6,1792.4,5.57911]
[1743785480146,0.7569,1792.6,1792.3,11.15882]
[1743785480464,5.57953,1792.3,1791.9,5.58055]
[1743785480658,5.57953,1792.3,1791.8,6.697154]
[1743785480659,0.7533,1792.1,1791.8,5.5808]
[1743785480868,6.38914018,1792.1,1791.7,5.58126]
[1743785481042,0.80898018,1792.1,1791.8,5.58077]
[1743785481244,0.7533,1792.1,1791.9,5.58054]
[1743785481465,7.05248018,1792.4,1792.1,5.57994]
[1743785481628,6.9968,1792.4,1792.1,5.57987]
[1743785481830,6.9968,1792.4,1792.3,5.57942]
[1743785482060,6.9968,1792.4,1792.2,5.57964]
[1743785482263,6.9968,1792.4,1792.1,5.58]
[1743785482448,5.63523018,1792.3,1791.9,11.16102]
[1743785482764,5.63523018,1792.3,1791.9,5.58048]
[1743785483066,0.05568018,1792.3,1792.0,5.58033]
[1743785483366,0.05568018,1792.3,1792.0,11.16053]
[1743785483535,0.05568018,1792.3,1792.0,5.5802]
[1743785484067,0.05568018,1792.3,1792.0,5.58018]
[1743785484274,0.20414638,1792.2,1792.1,11.1598]
[1743785484763,0.20414638,1792.2,1792.1,11.941]
[1743785484954,12.61614018,1792.9,1792.6,5.57843]
[1743785485137,3.0,1792.8,1792.4,5.57881]
[1743785485344,8.8415016,1792.8,1792.4,5.57881]
[1743785485756,5.57865,1792.6,1792.1,6.36117]
[1743785485955,5.63433018,1792.6,1792.3,5.57937]
[1743785486267,0.20764997,1792.5,1792.2,5.57954]
[1743785486572,0.83438018,1792.4,1792.1,11.15986]
[1743785486787,0.83438018,1792.4,1792.1,5.57986]
[1743785487071,0.20859744,1792.3,1792.2,5.57973]
[1743785487633,0.7717,1792.7,1792.4,5.57891]
[1743785487839,2.47851762,1792.7,1792.4,11.15787]
[1743785488040,0.7717,1792.7,1792.5,11.15734]
[1743785488236,6.9863,1792.9,1792.7,5.57814]
[1743785488468,6.9863,1792.9,1792.8,5.57786]
[1743785488469,0.8203,1792.9,1792.8,5.57786]
[1743785488635,0.05568018,1793.1,1792.7,5.57794]
[1743785488835,0.05568018,1793.1,1792.8,11.15543]
[1743785489043,12.56202,1793.2,1792.5,5.57878]
[1743785489044,0.8203,1793.2,1792.5,5.57878]
[1743785489289,0.8203,1793.2,1793.1,5.57693]
[1743785489465,5.63170018,1793.4,1793.1,5.57693]
[1743785489466,0.87598018,1793.4,1793.1,5.57693]
[1743785489668,0.8203,1793.4,1793.2,5.57651]
[1743785489871,0.7638,1793.7,1793.5,5.57568]
[1743785490238,0.7638,1793.7,1793.5,5.57555]
[1743785490438,0.7638,1793.7,1793.5,5.57549]
[1743785490654,0.05569018,1793.9,1793.7,5.57505]
[1743785490655,1e-05,1793.9,1793.7,5.57505]
[1743785491182,1e-05,1793.9,1793.6,5.57537]
[1743785491365,1e-05,1793.9,1793.7,5.57505]
[1743785491556,1e-05,1793.9,1793.3,0.7599]
[1743785491754,0.69831902,1793.9,1793.6,11.15063]
[1743785491955,0.69831902,1793.9,1793.7,5.57504]
[1743785492154,0.69831902,1793.9,1793.6,5.57526]
[1743785492765,1e-05,1793.9,1793.7,5.57495]
[1743785492971,1e-05,1793.9,1793.8,5.57475]
[1743785493572,1e-05,1793.9,1793.8,5.63049158]
[1743785493772,1e-05,1793.9,1793.8,5.57475]
[1743785494312,1e-05,1793.9,1793.8,6.33785]
[1743785494990,1e-05,1793.9,1793.8,6.39358392]
[1743785495194,1e-05,1793.9,1793.8,6.33785]
[1743785496384,1e-05,1793.9,1793.8,5.57475]
[1743785496956,1e-05,1793.9,1793.7,5.57495]
[1743785497157,0.557425,1793.9,1793.6,5.57527]
[1743785497862,6.132005,1793.9,1793.5,11.15121]
[1743785498093,0.16968,1793.8,1793.6,5.57533]
[1743785498389,5.74466,1793.8,1793.4,5.57589]
[1743785498560,0.8159,1793.6,1793.2,5.5766]
[1743785498756,0.16892993,1793.7,1793.4,5.57595]
[1743785498988,0.16893847,1793.5,1793.3,5.57628]
[1743785499193,0.81591,1793.9,1793.7,5.57506]
[1743785499497,1e-05,1793.9,1793.8,5.57475]
[1743785499790,5.57468,1793.9,1793.6,0.8164]
[1743785499994,6.13771602,1793.9,1793.5,11.15112]
[1743785500188,1e-05,1793.9,1793.8,5.57475]
[1743785500572,1e-05,1793.9,1793.7,5.57481]
[1743785500775,1e-05,1793.9,1793.7,11.14969]
[1743785501022,1e-05,1793.9,1793.8,5.57475]
[1743785501689,1e-05,1793.9,1793.7,11.14971]
[1743785501884,1e-05,1793.9,1793.8,5.57475]
[1743785502625,1e-05,1793.9,1793.7,5.57481]
[1743785502821,1e-05,1793.9,1793.7,5.5748]
[1743785503106,1e-05,1793.9,1793.8,5.57475]
[1743785503310,1e-05,1793.9,1793.6,5.57536]
[1743785503477,1e-05,1793.9,1793.6,5.57523]
[1743785503802,1e-05,1793.9,1793.7,5.57487]
[1743785503998,1e-05,1793.9,1793.6,5.5752]
[1743785504198,0.56300802,1793.9,1793.6,5.63094649]
[1743785504399,0.56300802,1793.9,1793.6,5.5752]
[1743785504601,0.56300802,1793.9,1793.7,5.57493]
[1743785504778,1e-05,1793.9,1793.8,5.57475]
[1743785504979,1e-05,1793.9,1793.6,5.5752]
[1743785505181,1e-05,1793.9,1793.7,5.57487]
[1743785505385,1e-05,1793.9,1793.6,5.57536]
[1743785505586,1e-05,1793.9,1793.6,5.5752]
[1743785506013,5.57478,1793.8,1793.3,0.8164]
[1743785506214,0.61312218,1793.9,1793.2,3.0]
[1743785506382,1e-05,1793.9,1793.7,5.575]
[1743785506714,1e-05,1793.9,1793.8,5.57475]
[1743785507024,1e-05,1793.9,1793.6,5.57526]
[1743785507428,1e-05,1793.9,1793.5,0.8006]
[1743785507429,11.20483018,1793.9,1793.5,5.57564]
[1743785507731,1e-05,1793.9,1793.5,5.57567]
[1743785508024,0.61312818,1793.9,1793.6,5.57526]
[1743785508193,0.61312818,1793.9,1793.4,5.57595]
[1743785508380,1e-05,1793.9,1793.7,5.57488]
[1743785508904,1e-05,1793.9,1793.8,5.57475]
[1743785510517,1e-05,1793.9,1793.7,5.57488]
[1743785511216,1e-05,1793.9,1793.7,5.57501]
[1743785511923,1e-05,1793.9,1793.6,11.1506]
[1743785512224,1e-05,1793.9,1793.6,5.57526]
[1743785512423,5.57509,1793.7,1793.3,5.57615]
[1743785512591,11.15099,1793.6,1793.3,5.57615]
[1743785512919,0.7703,1793.3,1793.0,5.57707]
[1743785513138,6.40232018,1793.3,1793.0,5.57707]
[1743785514041,0.82598018,1793.3,1793.0,5.57707]
[1743785514202,0.82598018,1793.3,1793.1,5.5768]
[1743785514390,0.7592,1793.5,1793.2,5.57662]
[1743785514590,0.7592,1793.5,1792.7,6.40654]
[1743785514591,5.5761,1793.4,1793.0,11.15436]
[1743785514789,0.05568018,1793.3,1793.1,5.57676]
[1743785514991,0.81488018,1793.5,1793.1,5.57676]
[1743785515221,6.39059018,1793.5,1793.1,5.57676]
[1743785515531,5.57613,1793.4,1793.1,5.57676]
[1743785515894,5.57652,1793.3,1793.0,5.57711]
[1743785516192,0.20663157,1793.3,1793.0,11.15421]
[1743785516419,0.15095139,1793.3,1793.2,5.57662]
[1743785516800,0.8166,1793.8,1793.6,5.57524]
[1743785517007,1e-05,1793.9,1793.6,5.57524]